bitfinex/quotes_ETHUSD_20251118
["timestamp","ask_amount","ask_price","bid_price","bid_amount"]
[1763492539372,0.29460781,3165.6,3165.1,0.6484]
[1763492539579,0.29460781,3165.5,3165.1,1.1339]
[1763492539773,0.29460781,3165.4,3165.1,1.1339]
[1763492540078,0.29460781,3165.3,3165.1,1.1339]
[1763492540249,0.29460781,3165.2,3165.1,0.6788]
[1763492540450,0.29460781,3165.2,3165.1,0.1933]
[1763492540794,0.29460781,3165.2,3165.1,0.6637]
[1763492541073,0.29460781,3165.2,3165.1,1.1368]
[1763492542663,0.29460781,3165.7,3165.1,1.1368]
[1763492542877,0.29460781,3165.6,3165.2,0.4731]
[1763492543198,0.29460781,3165.5,3165.2,0.4731]
[1763492543373,0.29460781,3165.4,3165.2,0.4731]
[1763492543573,0.29460781,3165.7,3165.2,0.4731]
[1763492543885,0.29460781,3165.6,3165.2,0.4731]
[1763492544080,0.29460781,3165.5,3165.2,0.4731]
[1763492544279,0.29460781,3165.4,3165.2,0.4731]
[1763492544480,0.29460781,3165.3,3165.2,0.4731]
[1763492544680,0.29460781,3165.7,3165.2,0.4731]
[1763492544992,0.29460781,3165.6,3165.2,0.4731]
[1763492545191,0.29460781,3165.5,3165.2,0.4731]
[1763492545489,0.29460781,3165.4,3165.3,0.4731]
[1763492545895,0.29460781,3165.4,3165.3,0.9435]
[1763492546593,0.29460781,3165.4,3165.3,0.4704]
[1763492546958,0.29460781,3165.4,3165.1,0.1933]
[1763492547163,0.002,3165.8,3165.1,0.6664]
[1763492547164,0.29460781,3165.3,3165.1,0.6664]
[1763492547381,0.29460781,3165.2,3165.1,0.1933]
[1763492547785,0.29460781,3165.2,3165.1,1.1368]
[1763492548194,0.29460781,3165.2,3165.1,0.6637]
[1763492548364,0.29460781,3165.2,3165.1,0.001]
[1763492550976,0.29460781,3165.2,3165.1,1.1437]
[1763492551170,0.29460781,3165.2,3165.1,0.6706]
[1763492551387,0.29460781,3165.2,3165.1,0.001]
[1763492553405,7.47435545,3165.2,3165.1,0.001]
[1763492553695,10.10215207,3165.2,3165.1,0.001]
[1763492553993,5.0109436,3165.2,3165.1,0.001]
[1763492554373,5.8645057,3165.2,3165.1,0.001]
[1763492555378,24.7462656,3165.2,3165.0,0.001]
[1763492555577,19.46900806,3165.1,3164.8,0.001]
[1763492555786,1.13839723,3164.9,3164.8,0.001]
[1763492555978,5.08855965,3164.9,3164.8,0.001]
[1763492556298,5.80253865,3164.9,3164.8,0.001]
[1763492556603,4.91367765,3164.9,3164.8,0.001]
[1763492556802,6.11421565,3164.9,3164.8,0.001]
[1763492557013,7.34564646,3164.9,3164.8,0.001]
[1763492557208,7.04336719,3164.9,3164.8,0.001]
[1763492557428,1.88920296,3164.9,3164.8,0.001]
[1763492557582,0.97577215,3164.9,3164.8,0.9179]
[1763492557899,0.29632854,3164.9,3164.8,0.9179]
[1763492562093,0.29632854,3165.4,3164.8,0.9179]
[1763492562282,0.29632854,3165.3,3164.9,0.4635]
[1763492562486,0.29632854,3165.2,3164.9,0.4635]
[1763492562707,0.29632854,3165.1,3164.9,0.4635]
[1763492562908,0.8530261,3165.7,3164.9,0.4635]
[1763492562909,0.29632854,3165.0,3164.9,0.4635]
[1763492563722,0.29632854,3165.6,3164.9,0.9169]
[1763492563917,0.29632854,3165.5,3164.9,0.4635]
[1763492564093,0.29632854,3165.4,3165.0,0.4635]
[1763492564288,0.29632854,3165.3,3165.0,0.4635]
[1763492564616,0.29632854,3165.2,3165.1,0.1979]
[1763492564998,0.8550261,3165.8,3165.1,0.1979]
[1763492564999,0.29632854,3165.7,3165.1,1.1148]
[1763492565203,0.002,3165.8,3165.1,0.6614]
[1763492565414,0.002,3165.8,3165.7,0.4534]
[1763492565925,0.002,3165.8,3165.7,0.9169]
[1763492567392,0.28995783,3166.0,3165.9,0.4534]
[1763492567721,0.002,3166.2,3166.1,0.6513]
[1763492568713,0.002,3166.2,3166.1,0.1979]
[1763492569219,0.002,3166.2,3165.1,0.1979]
[1763492569528,0.002,3166.2,3165.4,0.4635]
[1763492573607,0.002,3166.2,3166.1,0.6513]
[1763492574003,0.002,3166.2,3166.1,1.1148]
[1763492578842,0.7639987,3167.3,3166.1,1.1148]
[1763492579038,0.90699264,3167.1,3166.1,1.1148]
[1763492579338,0.90699264,3166.9,3166.1,0.6513]
[1763492579520,0.90699264,3166.7,3166.1,0.6513]
[1763492579840,0.29502446,3166.6,3166.1,0.6513]
[1763492580042,0.29502446,3167.1,3166.1,0.6513]
[1763492580213,0.29502446,3167.0,3166.1,0.6513]
[1763492580408,0.29502446,3167.0,3165.9,0.4635]
[1763492580409,0.90699264,3166.8,3165.9,0.4635]
[1763492580609,5.14668346,3166.7,3165.9,0.4635]
[1763492580918,0.29502446,3166.6,3165.9,0.4635]
[1763492581230,0.29502446,3166.8,3165.9,0.4635]
[1763492581538,0.29502446,3167.0,3165.9,0.4635]
[1763492581726,1.2020171,3166.9,3165.9,0.4635]
[1763492581931,0.90699264,3166.7,3165.9,0.4635]
[1763492582126,0.29502446,3166.6,3165.2,0.405504]
[1763492582330,0.90699264,3166.5,3165.6,0.4635]
[1763492582536,0.29502446,3166.4,3165.6,0.4635]
[1763492582737,0.405504,3166.8,3165.6,0.4635]
[1763492582938,6.84506146,3166.7,3165.6,0.4635]
[1763492583144,8.8147566,3166.6,3165.6,0.4635]
[1763492583307,3.14706146,3166.5,3165.6,0.4635]
[1763492583512,0.29502446,3166.4,3165.6,0.4635]
[1763492583720,0.29502446,3166.5,3165.6,0.4635]
[1763492583937,3.170037,3166.5,3165.6,0.4635]
[1763492584144,0.64173061,3166.4,3165.6,0.4635]
[1763492584507,0.29503875,3166.3,3165.6,0.4635]
[1763492584718,0.29503875,3166.5,3165.4,0.4645]
[1763492584941,1.20203139,3166.4,3165.4,0.4645]
[1763492585139,0.90699264,3166.2,3165.4,0.4645]
[1763492585340,0.90699264,3166.0,3165.4,0.4645]
[1763492585513,0.88663009,3165.9,3165.4,0.001]
[1763492585717,0.90699264,3165.7,3165.4,0.001]
[1763492585917,0.90699264,3165.5,3165.4,0.001]
[1763492586121,0.29503875,3165.5,3165.4,0.001]
[1763492586527,7.17017539,3165.5,3165.4,0.001]
[1763492586726,0.90699264,3165.4,3164.5,0.32937]
[1763492586931,0.81099482,3165.3,3163.2,7.33676398]
[1763492587128,0.29503875,3165.2,3163.5,0.405504]
[1763492587334,0.29503875,3165.1,3163.2,7.33676398]
[1763492587552,0.29503875,3165.7,3163.5,0.405504]
[1763492587754,1.20203139,3165.6,3163.2,7.33676398]
[1763492588047,0.90699264,3165.4,3163.2,7.33676398]
[1763492588248,8.04057509,3165.3,3163.2,7.33676398]
[1763492588554,3.20428597,3165.2,3163.3,0.405504]
[1763492588728,0.97583397,3165.1,3164.3,0.4994]
[1763492588926,0.90699264,3164.9,3164.0,0.4994]
[1763492589152,0.90699264,3164.7,3164.1,0.001]
[1763492589352,0.90699264,3164.5,3164.1,0.001]
[1763492589525,19.15134161,3164.5,3164.1,0.001]
[1763492589851,4.99560061,3164.5,3164.1,0.001]
[1763492590221,1.88282661,3164.5,3164.1,0.001]
[1763492590420,1.88282661,3164.5,3164.1,0.1875]
[1763492590872,1.20203139,3164.5,3164.1,0.1875]
[1763492591223,1.39031405,3164.5,3164.1,0.1875]
[1763492591551,0.29503875,3164.5,3164.4,0.9697]
[1763492591753,0.97477452,3165.1,3164.4,0.4703]
[1763492591926,3.09925675,3165.0,3164.4,0.4703]
[1763492592125,0.97477452,3164.9,3164.4,0.4703]
[1763492592355,0.29503875,3164.8,3164.4,0.4703]
[1763492592555,0.29503875,3165.2,3164.4,0.4703]
[1763492592753,1.20203139,3165.1,3164.4,0.4703]
[1763492592931,0.90699264,3164.9,3164.4,0.4703]
[1763492593134,0.29503875,3164.8,3164.4,0.4703]
[1763492593336,0.29503875,3164.8,3164.4,0.9697]
[1763492593766,0.29503875,3165.4,3164.4,0.9697]
[1763492593975,1.20203139,3165.3,3164.4,0.9697]
[1763492594269,0.89981339,3165.2,3164.4,0.9697]
[1763492594473,1.20203139,3165.1,3164.4,0.9697]
[1763492594668,0.29503875,3165.0,3164.4,0.9697]
[1763492595172,0.29503875,3165.4,3164.4,0.9697]
[1763492595384,1.20203139,3165.3,3164.4,0.9697]
[1763492595587,0.90699264,3165.1,3164.4,0.9697]
[1763492595741,0.75738259,3165.0,3164.4,0.9697]
[1763492596069,0.29503875,3165.0,3164.5,0.4994]
[1763492596247,0.97404809,3165.6,3164.9,0.4693]
[1763492596447,0.89089471,3166.1,3164.9,0.9687]
[1763492596647,3.91280381,3166.0,3164.9,0.9687]
[1763492596861,1.58600198,3165.9,3164.9,0.9687]
[1763492597059,0.90699264,3165.7,3164.9,0.4693]
[1763492597261,2.307352,3165.6,3165.0,0.4994]
[1763492597456,0.67900934,3165.5,3165.0,0.4994]
[1763492597656,0.67900934,3165.5,3165.1,0.1865]
[1763492597963,0.405504,3166.0,3165.1,0.1865]
[1763492598171,1.12733178,3165.9,3165.1,0.1865]
[1763492598370,0.90699264,3165.7,3165.1,0.1865]
[1763492598567,0.90699264,3165.5,3165.1,0.1865]
[1763492598771,1.70759584,3166.4,3165.2,0.4994]
[1763492598970,7.28726564,3166.3,3165.2,0.4994]
[1763492599170,2.67958364,3166.2,3165.2,0.4994]
[1763492599374,0.90699264,3166.0,3165.2,0.4994]
[1763492599572,0.67887964,3166.0,3165.2,0.4994]
[1763492599773,0.405504,3166.5,3165.2,0.4994]
[1763492599978,0.90699264,3166.4,3165.2,0.4994]
[1763492600287,0.90699264,3166.2,3165.2,0.4994]
[1763492600473,0.90699264,3166.0,3165.2,0.4994]
[1763492600669,0.90699264,3165.8,3165.2,0.4994]
[1763492600986,0.90699264,3165.1,3164.4,0.001]
[1763492601187,1.04673246,3165.1,3164.4,0.001]
[1763492601353,2.5795,3165.0,3164.4,0.4836]
[1763492601548,0.407504,3165.7,3164.4,0.4836]
[1763492601882,0.90699264,3165.5,3164.4,0.4836]
[1763492602085,0.90699264,3165.3,3164.4,0.4836]
[1763492602294,0.67897765,3165.3,3164.4,0.4836]
[1763492602456,0.002,3165.7,3164.4,0.4836]
[1763492602658,4.158777,3165.6,3164.4,0.4836]
[1763492602906,0.67897765,3165.5,3164.4,0.4836]
[1763492603258,0.002,3165.7,3164.4,0.4836]
[1763492603457,0.90699264,3165.5,3164.4,0.4836]
[1763492603716,0.90699264,3165.3,3164.4,0.4836]
[1763492603880,0.67897765,3165.3,3164.4,0.4836]
[1763492604081,0.002,3165.7,3164.4,0.4836]
[1763492604384,0.90699264,3165.5,3164.4,0.4836]
[1763492604608,0.90699264,3165.3,3164.4,0.4836]
[1763492604820,0.67897765,3165.3,3164.4,0.4836]
[1763492605293,0.002,3165.7,3164.4,0.4836]
[1763492605494,0.90699264,3165.5,3164.4,0.4836]
[1763492605659,0.67897765,3165.5,3164.4,0.4836]
[1763492605858,3.782851,3165.4,3164.4,0.4836]
[1763492606107,1.05726275,3165.3,3164.4,0.4836]
[1763492606271,0.90699264,3165.6,3164.4,0.4836]
[1763492606594,2.422177,3165.6,3164.4,0.4836]
[1763492606801,0.67897765,3165.5,3164.4,0.4836]
[1763492606973,0.90699264,3165.3,3164.4,0.4836]
[1763492607172,0.67897765,3165.3,3164.4,0.4836]
[1763492607373,0.002,3165.7,3164.4,0.4836]
[1763492607579,0.002,3165.7,3164.4,0.001]
[1763492607580,0.90699264,3165.5,3164.4,0.001]
[1763492607788,0.90699264,3165.3,3164.4,0.001]
[1763492607966,0.90699264,3165.1,3164.4,0.001]
[1763492608167,0.67897765,3165.1,3164.4,0.001]
[1763492608364,6.55149089,3165.0,3164.4,0.001]
[1763492608596,0.90699264,3164.8,3164.4,0.001]
[1763492608808,1.01831501,3164.7,3164.4,0.001]
[1763492609107,0.29520089,3164.6,3164.4,0.001]
[1763492609408,0.90699264,3164.5,3164.4,0.001]
[1763492609562,1.20219353,3164.5,3164.4,0.001]
[1763492610399,1.20219353,3164.5,3164.1,0.31828391]
[1763492610628,0.29520089,3164.4,3164.1,0.51298391]
[1763492610831,0.29520089,3164.4,3164.1,0.1947]
[1763492611449,0.29520089,3164.4,3164.0,0.001]
[1763492611450,0.0936,3164.2,3164.0,0.001]
[1763492611720,7.55276353,3164.1,3164.0,0.001]
[1763492611940,2.38027518,3164.1,3164.0,0.001]
[1763492612132,15.367654,3164.1,3164.0,0.001]
[1763492612332,16.914407,3164.1,3164.0,0.001]
[1763492612720,20.369781,3164.1,3164.0,0.001]
[1763492613231,23.701781,3164.1,3164.0,0.001]
[1763492613445,21.808557,3164.1,3164.0,0.001]
[1763492613648,24.922072,3164.1,3164.0,0.001]
[1763492613959,24.167431,3164.1,3164.0,0.001]
[1763492614169,20.835431,3164.1,3164.0,0.001]
[1763492614450,0.90699264,3163.7,3161.6,0.16517812]
[1763492614657,6.92887534,3163.8,3162.0,0.4826]
[1763492614658,0.0936,3162.8,3162.0,0.4826]
[1763492614819,0.29520089,3162.7,3162.0,0.4826]
[1763492615332,0.29520089,3163.1,3162.0,0.4826]
[1763492615538,1.20219353,3163.0,3162.0,0.4826]
[1763492615846,4.15980089,3162.9,3162.0,0.4826]
[1763492616073,12.76041518,3162.8,3161.6,0.16517812]
[1763492616361,1.31249664,3162.6,3161.6,0.16517812]
[1763492616563,1.70231431,3162.9,3161.6,0.63307812]
[1763492616564,0.97417854,3162.5,3161.6,0.63307812]
[1763492616734,0.29520089,3162.4,3161.6,0.63307812]
[1763492616930,0.29520089,3162.7,3161.7,0.4679]
[1763492617157,0.90699264,3162.8,3162.3,0.4623]
[1763492617351,0.90699264,3162.6,3162.3,0.4623]
[1763492617555,0.29520089,3162.5,3162.3,0.9302]
[1763492617771,0.29520089,3162.5,3162.3,0.4679]
[1763492618077,0.29520089,3163.0,3162.4,0.4623]
[1763492618233,3.504367,3162.9,3162.4,0.4623]
[1763492618435,0.90699264,3162.7,3162.4,0.4623]
[1763492618690,0.90699264,3162.5,3162.4,0.4623]
[1763492618969,0.29520089,3162.5,3162.2,0.1962]
[1763492619138,0.29520089,3162.7,3162.2,0.1962]
[1763492619340,0.90699264,3162.5,3162.2,0.1962]
[1763492619540,0.77541176,3162.5,3162.2,0.1962]
[1763492619776,0.405504,3163.3,3162.4,0.4623]
[1763492620074,1.31249664,3163.1,3162.3,0.001]
[1763492620362,0.97228509,3163.0,3162.4,0.4679]
[1763492620551,0.29428281,3162.9,3162.4,0.4679]
[1763492620754,0.29428281,3163.4,3162.4,0.4679]
[1763492620967,0.18792777,3163.4,3162.8,0.4623]
[1763492621341,0.68000228,3163.7,3162.8,0.4623]
[1763492621342,0.29428281,3163.6,3162.9,0.4679]
[1763492621653,0.90699264,3163.5,3162.9,0.4679]
[1763492621968,0.90699264,3163.3,3162.9,0.4679]
[1763492622178,0.29428281,3163.2,3162.6,0.4679]
[1763492622478,0.002,3163.7,3162.4,0.4679]
[1763492622646,0.002,3163.7,3163.1,0.6585]
[1763492623044,0.002,3163.7,3163.2,0.4679]
[1763492623368,0.002,3163.7,3163.6,0.4623]
[1763492623748,0.002,3163.7,3163.6,0.9302]
[1763492628180,0.002,3163.7,3163.3,0.4679]
[1763492628796,0.002,3163.7,3163.6,0.4623]
[1763492629977,0.002,3163.7,3163.6,0.9302]
[1763492635173,0.002,3163.7,3163.6,1.335704]
[1763492635384,0.002,3163.7,3163.6,0.9302]
[1763492638612,0.002,3163.7,3163.6,1.335704]
[1763492640694,0.002,3164.1,3163.7,0.405504]
[1763492641003,0.002,3164.4,3163.7,0.405504]
[1763492641004,0.002,3164.4,3164.0,0.867804]
[1763492641166,0.002,3165.7,3164.4,0.405504]
[1763492641574,0.002,3165.7,3164.3,0.6585]
[1763492641575,0.002,3165.7,3165.6,0.4623]
[1763492641877,0.002,3165.7,3165.3,0.4679]
[1763492643112,0.0936,3165.4,3164.6,0.4679]
[1763492643282,0.0936,3165.4,3164.3,0.1962]
[1763492643635,0.0936,3165.4,3164.4,0.4679]
[1763492645807,0.0956,3165.7,3164.4,0.4679]
[1763492646307,0.002,3165.7,3164.4,0.4679]
[1763492648220,0.002,3165.7,3164.0,0.1962]
[1763492648221,8.228414,3165.6,3164.0,0.1962]
[1763492648379,16.02741448,3165.5,3164.0,0.1962]
[1763492648577,0.90699264,3165.3,3164.0,0.1962]
[1763492648797,0.90699264,3165.1,3164.0,0.1962]
[1763492649008,0.29465617,3165.0,3164.0,0.1962]
[1763492649210,0.29465617,3165.0,3164.0,0.6855]
[1763492649521,0.90699264,3164.8,3163.5,0.4903]
[1763492649803,1.03517543,3164.7,3163.5,0.4903]
[1763492650007,0.29465617,3164.6,3163.5,0.4903]
[1763492650181,0.0936,3164.9,3163.5,0.4903]
[1763492650381,0.29465617,3165.0,3163.5,0.4903]
[1763492650586,0.97381126,3165.1,3163.6,0.405504]
[1763492650782,0.29465617,3165.0,3163.6,0.405504]
[1763492650993,0.97381126,3165.2,3163.8,0.405504]
[1763492651200,0.29465617,3165.1,3164.9,0.6884]
[1763492651407,0.29465617,3165.3,3164.9,0.1893]
[1763492651590,0.29465617,3165.6,3164.9,0.1893]
[1763492652103,0.18251754,3165.6,3165.0,0.4893]
[1763492652309,0.18251754,3165.6,3164.9,0.1893]
[1763492652310,0.29465617,3165.6,3164.9,0.1893]
[1763492652514,0.29665617,3165.7,3164.9,0.1893]
[1763492653213,0.29665617,3165.7,3165.0,0.4893]
[1763492653428,0.002,3165.7,3165.0,0.4893]
[1763492653726,0.002,3165.7,3165.6,0.4991]
[1763492654416,0.002,3165.7,3164.9,0.6786]
[1763492654585,0.002,3165.7,3164.9,0.1893]
[1763492654986,0.002,3165.7,3164.9,0.6786]
[1763492657113,0.002,3165.7,3164.6,0.1893]
[1763492657313,0.90699264,3165.5,3164.6,0.1893]
[1763492657512,0.78605105,3165.4,3164.6,0.1893]
[1763492657819,0.97381126,3165.4,3164.6,0.1893]
[1763492658025,0.29465617,3165.3,3164.6,0.1893]
[1763492658204,0.29465617,3165.5,3164.6,0.1893]
[1763492658522,12.54013417,3165.4,3164.6,0.1893]
[1763492658725,0.97381126,3165.3,3164.4,0.1893]
[1763492659022,0.29465617,3165.2,3164.4,0.1893]
[1763492659326,0.29465617,3165.1,3164.2,0.1893]
[1763492659499,0.29465617,3165.1,3163.8,0.001]
[1763492659500,0.84936412,3164.8,3163.8,0.001]
[1763492659690,0.0936,3164.2,3163.8,0.001]
[1763492659896,1.14402029,3164.5,3163.8,0.001]
[1763492660097,0.47697371,3164.4,3163.8,0.001]
[1763492660298,0.29465617,3164.3,3163.8,0.001]
[1763492660620,0.29465617,3164.2,3163.8,0.001]
[1763492660824,0.29465617,3164.3,3163.8,0.001]
[1763492660994,0.29465617,3164.2,3163.8,0.001]
[1763492661190,0.29465617,3164.3,3163.8,0.001]
[1763492661426,0.29465617,3164.2,3163.8,0.001]
[1763492661724,0.29465617,3164.3,3164.2,0.6613]
[1763492661929,0.29465617,3164.5,3163.8,0.001]
[1763492662129,0.29465617,3164.4,3163.8,0.001]
[1763492662333,0.29465617,3164.3,3163.8,0.001]
[1763492662622,0.29465617,3164.6,3163.8,0.001]
[1763492662796,0.29465617,3164.5,3163.8,0.001]
[1763492662997,0.29465617,3164.4,3163.8,0.001]
[1763492663198,0.29465617,3164.6,3163.9,0.4872]
[1763492663416,0.29465617,3164.5,3163.9,0.4872]
[1763492663619,0.29465617,3164.4,3163.9,0.4872]
[1763492663809,0.29465617,3164.5,3163.9,0.4872]
[1763492664107,0.97381126,3164.7,3163.9,0.4872]
[1763492664307,0.29465617,3164.6,3163.9,0.4872]
[1763492664516,0.29465617,3164.7,3163.9,0.4872]
[1763492664721,0.29465617,3164.9,3163.9,0.4872]
[1763492664918,0.29465617,3164.8,3163.9,0.4872]
[1763492665119,0.29465617,3164.7,3163.9,0.4872]
[1763492665321,0.29465617,3164.6,3163.9,0.4872]
[1763492665603,0.29465617,3164.8,3163.9,0.4872]
[1763492665820,0.29465617,3164.7,3163.9,0.4872]
[1763492666027,0.29465617,3164.9,3163.9,0.4872]
[1763492666232,0.29465617,3164.8,3163.9,0.4872]
[1763492666439,0.29465617,3164.7,3163.9,0.4872]
[1763492666742,0.67915509,3164.9,3163.9,0.4872]
[1763492666743,0.29465617,3164.6,3163.9,0.4872]
[1763492666943,0.29465617,3164.9,3163.9,0.4872]
[1763492667140,0.29465617,3164.8,3163.9,0.4872]
[1763492667438,0.29465617,3164.7,3163.9,0.4872]
[1763492667606,0.29465617,3164.6,3163.9,0.4872]
[1763492667811,0.84936412,3165.0,3163.9,0.4872]
[1763492667812,0.29465617,3164.9,3163.9,0.4872]
[1763492668028,0.29465617,3164.8,3163.9,0.4872]
[1763492668340,0.20510129,3164.9,3163.8,0.001]
[1763492668341,0.29465617,3164.7,3163.8,0.001]
[1763492668637,0.29465617,3164.6,3163.8,0.4882]
[1763492668842,0.29465617,3164.5,3163.8,0.4882]
[1763492669038,0.29465617,3164.4,3163.8,0.4882]
[1763492669241,0.29465617,3164.7,3163.8,0.4882]
[1763492669443,0.29465617,3164.6,3163.8,0.4882]
[1763492669625,0.29465617,3164.5,3163.8,0.4882]
[1763492669814,0.29465617,3164.4,3163.8,0.4882]
[1763492670014,0.29465617,3164.6,3163.8,0.4882]
[1763492670310,0.29465617,3164.5,3163.8,0.4882]
[1763492670515,0.29465617,3164.4,3163.8,0.4882]
[1763492670756,0.29465617,3164.6,3163.8,0.001]
[1763492670915,0.29465617,3164.5,3163.8,0.001]
[1763492671115,0.29465617,3164.6,3163.8,0.4882]
[1763492671316,0.29465617,3164.5,3163.8,0.4882]
[1763492671528,0.29465617,3164.4,3163.8,0.4882]
[1763492671729,0.29465617,3164.6,3163.8,0.4882]
[1763492672063,0.2026003,3164.6,3163.8,0.4882]
[1763492672843,0.84936412,3164.8,3163.8,0.4882]
[1763492673365,0.94296412,3164.7,3163.8,0.001]
[1763492673643,0.002,3164.4,3163.8,0.001]
[1763492675548,0.002,3164.4,3163.9,0.4872]
[1763492676145,0.002,3164.4,3164.3,0.6478]
[1763492676848,0.002,3164.4,3164.1,0.1863]
[1763492678348,0.002,3164.4,3164.1,0.657]
[1763492678515,0.002,3164.4,3164.3,0.4701]
[1763492678931,0.002,3164.4,3164.3,0.9408]
[1763492679130,0.002,3164.4,3163.8,0.001]
[1763492679131,0.0956,3164.4,3163.8,0.001]
[1763492679542,0.002,3164.4,3163.8,0.4717]
[1763492679926,0.002,3164.4,3164.3,0.6564]
[1763492680619,0.002,3164.4,3164.3,1.1271]
[1763492681746,0.002,3164.4,3164.3,0.6564]
[1763492682049,0.002,3164.4,3164.0,0.4707]
[1763492683454,0.002,3164.4,3164.3,0.4701]
[1763492683654,0.002,3164.4,3164.3,0.9408]
[1763492684837,0.002,3164.4,3164.3,0.4701]
[1763492685039,0.002,3164.4,3163.8,0.001]
[1763492685228,0.29764348,3164.4,3163.9,0.4707]
[1763492685434,0.002,3164.4,3163.9,0.4707]
[1763492685821,0.002,3164.4,3164.3,0.6564]
[1763492686021,0.29764348,3164.4,3164.3,0.6564]
[1763492686449,0.002,3164.4,3164.3,1.1271]
[1763492686648,0.29764348,3164.4,3164.3,1.1271]
[1763492687653,0.29764348,3164.4,3164.1,0.1863]
[1763492687853,0.29564348,3164.3,3164.1,0.1863]
[1763492688022,0.29564348,3164.2,3164.1,0.657]
[1763492688537,0.29564348,3164.2,3164.1,1.1271]
[1763492690027,0.29564348,3164.2,3163.8,0.001]
[1763492690227,0.29564348,3164.1,3163.8,0.4717]
[1763492690453,0.29564348,3164.0,3163.8,0.4717]
[1763492690644,0.002,3164.4,3163.8,0.4717]
[1763492690645,0.29564348,3163.9,3163.8,0.4717]
[1763492690841,0.29564348,3163.9,3163.8,0.9418]
[1763492691363,0.29564348,3163.9,3163.8,0.4711]
[1763492691732,0.29564348,3163.9,3163.8,0.9418]
[1763492693766,0.29564348,3163.9,3163.8,0.938071]
[1763492694063,0.29564348,3163.9,3163.8,0.467371]
[1763492694565,0.29564348,3163.9,3163.8,0.938071]
[1763492696572,0.29564348,3163.9,3163.7,0.001]
[1763492696883,0.29564348,3163.8,3163.7,0.4717]
[1763492697076,0.29564348,3163.8,3163.7,0.9418]
[1763492699286,0.29564348,3164.2,3163.7,0.9418]
[1763492699455,0.29564348,3164.1,3163.8,0.4707]
[1763492699655,0.29564348,3164.0,3163.8,0.4707]
[1763492699988,0.29564348,3163.9,3163.8,0.4707]
[1763492700504,0.29564348,3163.9,3163.7,0.001]
[1763492700696,0.29564348,3163.8,3163.7,0.4717]
[1763492700896,0.29564348,3163.8,3163.7,0.9418]
[1763492701680,0.68354497,3164.3,3163.7,0.9418]
[1763492701681,0.29564348,3164.2,3163.7,0.9418]
[1763492701854,0.29564348,3164.1,3163.8,0.4707]
[1763492702054,0.29564348,3164.0,3163.8,0.4707]
[1763492702387,0.29564348,3163.9,3163.8,0.4707]
[1763492702894,0.29564348,3163.9,3163.8,0.9408]
[1763492704612,0.29564348,3163.9,3163.8,0.4701]
[1763492704788,0.29564348,3163.9,3163.8,0.9408]
[1763492706062,0.29564348,3164.3,3163.8,0.9408]
[1763492706268,0.29564348,3164.2,3163.9,0.4959]
[1763492706559,0.29564348,3164.1,3163.9,0.4959]
[1763492706760,0.29564348,3164.0,3163.9,0.4959]
[1763492706961,0.29564348,3164.3,3163.9,0.4959]
[1763492707163,0.29564348,3164.2,3163.9,0.4959]
[1763492707359,0.29564348,3164.1,3163.9,0.4959]
[1763492707585,0.002,3164.4,3164.3,0.6515]
[1763492707786,0.29862705,3164.4,3164.3,1.1474]
[1763492707987,0.002,3164.4,3164.3,1.1474]
[1763492708408,0.29851797,3164.4,3164.1,0.1854]
[1763492708564,0.29651797,3164.3,3164.1,0.1854]
[1763492708767,0.002,3164.4,3164.3,0.4661]
[1763492709195,0.002,3164.4,3164.3,0.962]
[1763492712614,0.002,3164.4,3164.3,1.367504]
[1763492713220,0.002,3164.4,3164.3,0.962]
[1763492714326,0.002,3164.4,3164.3,1.367504]
[1763492714908,0.002,3164.4,3164.3,6.13890835]
[1763492715233,0.002,3164.4,3164.3,6.77133919]
[1763492717102,0.002,3164.4,3164.3,1.99993484]
[1763492717807,0.002,3164.5,3164.4,0.405504]
[1763492718020,0.002,3164.5,3164.4,1.367504]
[1763492719438,0.002,3164.8,3164.4,9.99890835]
[1763492719754,0.002,3164.8,3164.7,11.32140534]
[1763492720152,0.002,3164.8,3164.7,11.81730534]
[1763492720362,0.002,3164.8,3164.7,6.13890835]
[1763492720647,0.002,3164.8,3164.7,1.367504]
[1763492722109,0.002,3164.8,3164.7,6.13890835]
[1763492722309,0.002,3164.8,3164.7,7.73132294]
[1763492722509,0.002,3165.1,3164.8,0.405504]
[1763492722706,0.002,3165.1,3165.0,0.879304]
[1763492723140,0.002,3165.1,3165.0,1.371004]
[1763492733268,0.002,3165.1,3164.6,4.77240435]
[1763492733269,0.1023,3165.1,3164.6,4.77240435]
[1763492733420,0.002,3165.1,3165.0,0.4738]
[1763492733832,0.1023,3165.1,3164.6,4.77240435]
[1763492734577,0.002,3165.1,3164.7,0.4917]
[1763492735356,0.002,3165.1,3164.6,4.77240435]
[1763492735566,0.002,3165.1,3164.6,5.26410435]
[1763492735731,0.002,3165.1,3164.7,0.52641044]
[1763492735927,0.002,3165.1,3164.7,1.01811044]
[1763492736447,0.002,3165.1,3164.7,0.52641044]
[1763492736833,0.002,3165.1,3164.9,4.77140435]
[1763492737538,0.002,3165.1,3165.0,0.4544]
[1763492738170,0.002,3165.1,3165.0,0.9434]
[1763492738347,0.002,3165.1,3165.0,1.51488044]
[1763492738665,0.002,3165.1,3165.0,0.4544]
[1763492739174,0.002,3165.1,3165.0,0.9434]
[1763492739358,0.002,3165.1,3165.0,0.4544]
[1763492739566,0.002,3165.1,3164.9,4.77140435]
[1763492740858,0.002,3165.1,3164.6,4.77240435]
[1763492740859,0.1003,3165.0,3164.6,4.77240435]
[1763492741074,0.1003,3165.0,3164.7,0.88274444]
[1763492741323,0.002,3165.1,3164.7,1.37174444]
[1763492741697,0.002,3165.1,3164.7,2.27873708]
[1763492742222,0.002,3165.1,3164.8,0.489]
[1763492742592,0.002,3165.1,3164.7,1.78973708]
[1763492742795,0.1003,3164.8,3164.6,0.001]